fUSD/lending_fUSD_20251222
["ID","MTS","AMOUNT","RATE_DAILY","PERIOD"]
[399456724,1766369447615,-377.0,0.00023131,2]
[399456725,1766369447623,-277.35679052,0.00023152,2]
[399456726,1766369447632,-151.0,0.00023152,2]
[399456727,1766369447641,-1600.0,0.0002318,2]
[399456728,1766369447650,-322.63,0.00023353,2]
[399456729,1766369447659,-234.34205192,0.00023622,2]
[399456730,1766369447668,-2429.0,0.00023652,2]
[399456731,1766369447678,-269.14,0.00023652,2]
[399456732,1766369447687,-322.63,0.00023869,2]
[399456733,1766369447697,-151.0,0.0002387,7]
[399456734,1766369447706,-239848.7837139,0.00023873,2]
[399456735,1766369447715,-9114.0,0.00024233,2]
[399456736,1766369447726,-322.63,0.00024384,2]
[399456737,1766369447735,-2000.0,0.000244,2]
[399456738,1766369447744,-1326.0,0.000244,2]
[399456739,1766369447753,-612.0,0.000244,2]
[399456740,1766369447762,-1609.0,0.000244,2]
[399456741,1766369447772,-518.0,0.000244,2]
[399456742,1766369447781,-1262.0,0.000244,2]
[399456743,1766369447790,-4513.3449511,0.00024482,2]
[399456744,1766369447800,-13540.0348533,0.00024489,2]
[399456745,1766369447809,-287.61899177,0.00024521,2]
[399456746,1766369447819,-151.26425143,0.00024521,2]
[399456747,1766369447828,-502.18604704,0.00024799,2]
[399456748,1766369447837,-500.0,0.00024799,2]
[399456749,1766369447846,-500.0,0.00024799,2]
[399456750,1766369447855,-529865.679581,0.000248,2]
[399456751,1766369447865,-500.0,0.00024899,2]
[399456752,1766369447874,-102570.291672,0.000249,2]
[399456753,1766369447883,-1148.86,0.00025,7]
[399456754,1766369447893,-1000.0,0.00025,2]
[399456755,1766369447903,-1093.6,0.00025004,2]
[399456756,1766369447913,-298.26089446,0.0002589,2]
[399456757,1766369447922,-1904.0,0.000264,2]
[399456758,1766369447931,-2429.0,0.00026652,2]
[399456759,1766369447941,-1000.0,0.00026676,2]
[399456760,1766369447950,-1093.6,0.00027003,2]
[399456761,1766369447959,-309.29654756,0.00027259,2]
[399456762,1766369447968,-150.0,0.00027369,2]
[399456763,1766369447977,-300.0,0.00027397,2]
[399456764,1766369447986,-1438.65,0.00027397,2]
[399456765,1766369447996,-500.0,0.00027397,14]
[399456766,1766369448008,-847.186,0.000274,2]
[399456767,1766369448017,-9587.77,0.00027671,2]
[399456768,1766369448026,-200.0,0.00027776,2]
[399456769,1766369448037,-1518.13760257,0.000279,2]
[399456770,1766369448046,-771.66914966,0.000279,2]
[399456771,1766369448055,-2000.0,0.000281,2]
[399456772,1766369448065,-320.74051982,0.00028628,2]
[399456773,1766369448075,-1093.6,0.00029003,2]
[399456774,1766369448084,-1000.0,0.000292,2]
[399456775,1766369448093,-500.0,0.00029425,2]
[399456776,1766369448103,-2429.0,0.00029652,2]
[399456777,1766369448112,-180.26636308,0.000299,2]
[399456778,1766369448122,-332.60791905,0.00029997,2]
[399456779,1766369448131,-1283.44242147,0.00030059,15]
[399456780,1766369448142,-1148.86,0.000301,7]
[399456781,1766369448155,-1000.0,0.000306,2]
[399456782,1766369448164,-1000.0,0.00030859,2]
[399456783,1766369448174,-1093.6,0.00031002,2]
[399456784,1766369448183,-344.91441206,0.00031366,2]
[399456785,1766369448193,-2000.0,0.000318,2]
[399456786,1766369448206,-2429.0,0.00032652,2]
[399456787,1766369448216,-357.6762453,0.00032735,2]
[399456788,1766369448227,-150.0,0.00032778,7]
[399456789,1766369448237,-150.0,0.00032778,7]
[399456790,1766369448246,-150.0,0.00032778,7]
[399456791,1766369448256,-150.0,0.00032778,7]
[399456792,1766369448266,-150.333,0.00032778,7]
[399456793,1766369448276,-1058.42,0.000329,2]
[399456794,1766369448286,-1000.0,0.00032973,10]
[399456795,1766369448295,-1000.0,0.00032973,10]
[399456796,1766369448304,-153.42,0.00033,14]
[399456797,1766369448314,-224.31,0.00033,14]
[399456798,1766369448323,-1093.6,0.00033002,3]
[399456799,1766369448333,-1000.0,0.0003311,10]
[399456800,1766369448343,-1000.0,0.0003311,10]
[399456801,1766369448352,-1000.0,0.00033165,2]
[399456802,1766369448361,-200.0,0.00033232,10]
[399456803,1766369448371,-1000.0,0.00033247,10]
[399456804,1766369448380,-1000.0,0.00033247,10]
[399456805,1766369448389,-1000.0,0.00033384,10]
[399456806,1766369448399,-1000.0,0.00033384,10]
[399456807,1766369448408,-1148.86,0.000334,14]
[399456808,1766369448419,-1000.0,0.000334,7]
[399456809,1766369448428,-1000.0,0.00033521,10]
[399456810,1766369448438,-1000.0,0.00033521,10]
[399456811,1766369448447,-500.0,0.00033648,2]
[399456812,1766369448457,-500.0,0.00033649,2]
[399456813,1766369448467,-500.0,0.0003365,2]
[399456814,1766369448476,-500.0,0.00033651,2]
[399456815,1766369448486,-500.0,0.00033652,2]
[399456816,1766369448495,-500.0,0.00033653,2]
[399456817,1766369448505,-503.204365,0.00033654,2]
[399456818,1766369448514,-1000.0,0.00033658,10]
[399456819,1766369448523,-1000.0,0.00033658,10]
[399456820,1766369448532,-300.0,0.00033699,2]
[399456821,1766369448542,-1000.0,0.00033795,10]
[399456822,1766369448551,-1000.0,0.00033795,10]
[399456823,1766369448561,-1000.0,0.00033932,10]
[399456824,1766369448570,-1000.0,0.00033932,10]
[399456825,1766369448579,-1000.0,0.00034068,10]
[399456826,1766369448589,-1000.0,0.00034068,10]
[399456827,1766369448599,-1058.42,0.000341,2]
[399456828,1766369448609,-370.91026638,0.00034104,2]
[399456829,1766369448618,-1000.0,0.00034205,10]
[399456830,1766369448627,-1000.0,0.00034205,10]
[399456831,1766369448639,-224.31,0.000343,14]
[399456832,1766369448648,-1000.0,0.00034342,10]
[399456833,1766369448658,-1000.0,0.00034342,10]
[399456834,1766369448667,-153.42,0.000344,14]
[399456835,1766369448677,-1000.0,0.00034479,10]
[399456836,1766369448687,-1000.0,0.00034479,10]
[399456837,1766369448699,-774.62869,0.000346,10]
[399456838,1766369448709,-1000.0,0.00034616,10]
[399456839,1766369448719,-1000.0,0.00034616,10]
[399456840,1766369448729,-1000.0,0.00034753,10]
[399456841,1766369448739,-1000.0,0.00034753,10]
[399456842,1766369448749,-1000.0,0.000348,7]
[399456843,1766369448758,-1000.0,0.0003489,10]
[399456844,1766369448952,-1000.0,0.0003489,10]
[399456845,1766369448972,-801.13867546,0.00035,3]
[399456846,1766369448982,-146378.4305353,0.00035,3]
[399456847,1766369448991,-1093.6,0.00035001,4]
[399456848,1766369449000,-1000.0,0.00035027,10]
[399456849,1766369449009,-1000.0,0.00035027,10]
[399456850,1766369449018,-1000.0,0.00035164,10]
[399456851,1766369449028,-1000.0,0.00035164,10]
[399456852,1766369449037,-1058.42,0.000352,2]
[399456853,1766369449046,-1000.0,0.00035301,10]
[399456854,1766369449056,-1000.0,0.00035301,10]
[399456855,1766369449065,-224.31,0.000354,14]
[399456856,1766369449075,-1000.0,0.00035438,10]
[399456857,1766369449084,-1000.0,0.00035438,10]
[399456858,1766369449093,-384.63394623,0.00035473,2]
[399456859,1766369449103,-152.0,0.00035478,3]
[399456860,1766369449112,-2000.0,0.000355,2]
[399456861,1766369449120,-233.20585649,0.00035519,3]
[399456862,1766369449129,-1000.0,0.00035575,10]
[399456863,1766369449139,-1000.0,0.00035575,10]
[399456864,1766369449151,-1000.0,0.00035575,10]
[399456865,1766369449160,-231.0,0.00035575,10]
[399456866,1766369449170,-153.42,0.000356,14]
[399456867,1766369449179,-590.46167569,0.00035616,30]
[399456868,1766369449190,-212.4,0.0003562,30]
[399456869,1766369449199,-201.25,0.0003562,30]
[399456870,1766369449209,-2429.0,0.00035652,2]
[399456871,1766369449219,-1000.0,0.00035712,10]
[399456872,1766369449230,-1000.0,0.00035712,10]
[399456873,1766369449240,-1000.0,0.00035712,10]
[399456874,1766369449249,-1000.0,0.00035849,10]
[399456875,1766369449260,-1000.0,0.00035849,10]
[399456876,1766369449269,-1000.0,0.00035849,10]
[399456877,1766369449279,-190.0,0.00036,2]
[399456878,1766369449289,-600.0,0.00036,120]
[399456879,1766369449298,-600.0,0.00036,120]
[399456880,1766369449307,-150.0,0.00036164,2]
[399456881,1766369449317,-464.69,0.00036164,2]
[399456882,1766369449326,-150.0,0.00036164,2]
[399456883,1766369449336,-153.16,0.00036164,2]
[399456884,1766369449345,-150.0,0.00036164,2]
[399456885,1766369449355,-178.37,0.00036164,2]
[399456886,1766369449364,-150.0,0.00036164,2]
[399456887,1766369449375,-464.69,0.00036164,2]
[399456888,1766369449385,-150.0,0.00036164,2]
[399456889,1766369449394,-178.44,0.00036164,2]
[399456890,1766369449404,-150.0,0.00036164,2]
[399456891,1766369449413,-178.44,0.00036164,2]
[399456892,1766369449423,-150.0,0.00036164,2]
[399456893,1766369449432,-150.0,0.00036164,2]
[399456894,1766369449442,-553.9,0.00036164,2]
[399456895,1766369449451,-150.0,0.00036164,2]
[399456896,1766369449461,-178.44,0.00036164,2]
[399456897,1766369449471,-553.9,0.00036164,2]
[399456898,1766369449480,-150.0,0.00036164,2]
[399456899,1766369449489,-464.69,0.00036164,2]
[399456900,1766369449499,-150.0,0.00036164,2]
[399456901,1766369449508,-180.78,0.00036164,2]
[399456902,1766369449517,-553.9,0.00036164,2]
[399456903,1766369449527,-150.0,0.00036164,2]
[399456904,1766369449536,-464.69,0.00036164,2]
[399456905,1766369449546,-247.19,0.00036164,2]
[399456906,1766369449555,-553.9,0.00036164,2]
[399456907,1766369449565,-250.98,0.00036164,2]
[399456908,1766369449575,-470.6,0.00036164,2]
[399456909,1766369449584,-150.0,0.00036164,2]
[399456910,1766369449593,-563.08,0.00036164,2]
[399456911,1766369449602,-178.44,0.00036164,2]
[399456912,1766369449611,-464.69,0.00036164,2]
[399456913,1766369449621,-151.3,0.00036164,2]
[399456914,1766369449630,-150.0,0.00036164,2]
[399456915,1766369449640,-553.9,0.00036164,2]
[399456916,1766369449649,-150.0,0.00036164,2]
[399456917,1766369449659,-150.0,0.00036164,2]
[399456918,1766369449670,-150.0,0.00036164,2]
[399456919,1766369449680,-178.44,0.00036164,2]
[399456920,1766369449690,-553.9,0.00036164,2]
[399456921,1766369449699,-170.6,0.00036164,2]
[399456922,1766369449708,-464.69,0.00036164,2]
[399456923,1766369449718,-150.0,0.00036164,2]
[399456924,1766369449727,-150.0,0.00036164,2]
[399456925,1766369449736,-150.0,0.00036164,2]
[399456926,1766369449746,-553.9,0.00036164,2]
[399456927,1766369449755,-170.67,0.00036164,2]
[399456928,1766369449765,-150.0,0.00036164,2]
[399456929,1766369449774,-553.9,0.00036164,2]
[399456930,1766369449783,-178.44,0.00036164,2]
[399456931,1766369449793,-150.0,0.00036164,2]
[399456932,1766369449802,-170.67,0.00036164,2]
[399456933,1766369449811,-150.0,0.00036164,2]
[399456934,1766369449821,-464.69,0.00036164,2]
[399456935,1766369449830,-170.67,0.00036164,2]
[399456936,1766369449839,-150.0,0.00036164,2]
[399456937,1766369449848,-150.0,0.00036164,2]
[399456938,1766369449858,-178.44,0.00036164,2]
[399456939,1766369449868,-553.9,0.00036164,2]
[399456940,1766369449878,-464.69,0.00036164,2]
[399456941,1766369449887,-150.0,0.00036164,2]
[399456942,1766369449896,-170.67,0.00036164,2]
[399456943,1766369449906,-553.9,0.00036164,2]
[399456944,1766369449916,-178.44,0.00036164,2]
[399456945,1766369449925,-170.67,0.00036164,2]
[399456946,1766369449935,-553.9,0.00036164,2]
[399456947,1766369449944,-150.0,0.00036164,2]
[399456948,1766369449953,-178.44,0.00036164,2]
[399456949,1766369449963,-464.69,0.00036164,2]
[399456950,1766369449973,-150.0,0.00036164,2]
[399456951,1766369449983,-170.67,0.00036164,2]
[399456952,1766369449992,-553.9,0.00036164,2]
[399456953,1766369450003,-178.44,0.00036164,2]
[399456954,1766369450013,-170.67,0.00036164,2]
[399456955,1766369450022,-553.9,0.00036164,2]
[399456956,1766369450032,-150.0,0.00036164,2]
[399456957,1766369450041,-464.69,0.00036164,2]
[399456958,1766369450051,-170.67,0.00036164,2]
[399456959,1766369450061,-150.0,0.00036164,2]
[399456960,1766369450070,-178.44,0.00036164,2]
[399456961,1766369450080,-178.44,0.00036164,2]
[399456962,1766369450089,-170.67,0.00036164,2]
[399456963,1766369450099,-178.44,0.00036164,2]
[399456964,1766369450108,-150.0,0.00036164,2]
[399456965,1766369450118,-553.9,0.00036164,2]
[399456966,1766369450128,-170.67,0.00036164,2]
[399456967,1766369450139,-464.69,0.00036164,2]
[399456968,1766369450152,-150.0,0.00036164,2]
[399456969,1766369450161,-170.67,0.00036164,2]
[399456970,1766369450170,-178.44,0.00036164,2]
[399456971,1766369450180,-170.67,0.00036164,2]
[399456972,1766369450191,-150.0,0.00036164,2]
[399456973,1766369450201,-553.9,0.00036164,2]
[399456974,1766369450211,-464.69,0.00036164,2]
[399456975,1766369450220,-553.9,0.00036164,2]
[399456976,1766369450230,-170.67,0.00036164,2]
[399456977,1766369450241,-150.0,0.00036164,2]
[399456978,1766369450251,-178.44,0.00036164,2]
[399456979,1766369450260,-150.0,0.00036164,2]
[399456980,1766369450270,-170.67,0.00036164,2]
[399456981,1766369450279,-553.9,0.00036164,2]
[399456982,1766369450288,-354.68,0.00036164,2]
[399456983,1766369450298,-178.44,0.00036164,2]
[399456984,1766369450308,-553.9,0.00036164,2]
[399456985,1766369450318,-170.67,0.00036164,2]
[399456986,1766369450328,-150.0,0.00036164,2]
[399456987,1766369450338,-553.9,0.00036164,2]
[399456988,1766369450348,-150.0,0.00036164,2]
[399456989,1766369450358,-170.67,0.00036164,2]
[399456990,1766369450367,-178.44,0.00036164,2]
[399456991,1766369450377,-1000.0,0.000362,7]
[399456992,1766369450386,-1058.42,0.000364,2]
[399456993,1766369450396,-224.31,0.000365,14]
[399456994,1766369450406,-398.86540225,0.00036842,2]
[399456995,1766369450416,-659.33,0.00036849,2]
[399456996,1766369450425,-659.33,0.00036849,2]
[399456997,1766369450435,-659.33,0.00036849,2]
[399456998,1766369450445,-659.33,0.00036849,2]
[399456999,1766369450455,-659.33,0.00036849,2]
[399457000,1766369450465,-659.33,0.00036849,2]
[399457001,1766369450475,-375.0,0.00036986,15]
[399457002,1766369450484,-750.0,0.00036986,17]
[399457003,1766369450493,-1125.0,0.00036986,19]
[399457004,1766369450502,-1500.0,0.00036986,21]
[399457005,1766369450511,-1875.0,0.00036986,23]
[399457006,1766369450522,-2250.0,0.00036986,25]
[399457007,1766369450532,-2625.0,0.00036986,27]
[399457008,1766369450541,-562.8433846,0.00036986,29]
[399457009,1766369450552,-153.346072,0.00036986,10]
[399457010,1766369450562,-228.66578,0.00036986,31]
[399457011,1766369450571,-151.352123,0.00036986,31]
[399457012,1766369450581,-170.67,0.00036986,2]
[399457013,1766369450591,-553.9,0.00036986,2]
[399457014,1766369450600,-178.44,0.00036986,2]
[399457015,1766369450609,-150.0,0.00036986,2]
[399457016,1766369450619,-178.44,0.00036986,2]
[399457017,1766369450628,-150.0,0.00036986,2]
[399457018,1766369450638,-170.67,0.00036986,2]
[399457019,1766369450649,-553.9,0.00036986,2]
[399457020,1766369450658,-553.9,0.00036986,2]
[399457021,1766369450667,-176.77,0.00036986,2]
[399457022,1766369450677,-170.67,0.00036986,2]
[399457023,1766369450687,-367.8,0.00036986,2]
[399457024,1766369450696,-553.9,0.00036986,2]
[399457025,1766369450707,-170.67,0.00036986,2]
[399457026,1766369450717,-170.67,0.00036986,2]
[399457027,1766369450728,-1007.1,0.00036986,2]
[399457028,1766369450738,-553.68,0.00036986,2]
[399457029,1766369450748,-170.67,0.00036986,2]
[399457030,1766369450758,-1093.6,0.00037001,5]
[399457031,1766369450768,-500.0,0.00037356,14]
[399457032,1766369450777,-500.0,0.00037356,14]
[399457033,1766369450787,-500.0,0.00037356,14]
[399457034,1766369450796,-153.42,0.000376,14]
[399457035,1766369450806,-1010.0,0.000376,7]
[399457036,1766369450815,-1516.93386867,0.0003783,2]
[399457037,1766369450826,-539.670156,0.0003799,7]
[399457038,1766369450836,-2000.0,0.00038,30]
[399457039,1766369450846,-1000.0,0.00038,2]
[399457040,1766369450856,-600.0,0.00038,120]
[399457041,1766369450867,-600.0,0.00038,120]
[399457042,1766369450878,-1257.0,0.00038033,20]
[399457043,1766369450887,-869.41,0.00038225,5]
[399457044,1766369450897,-500.0,0.00038356,120]
[399457045,1766369450906,-500.0,0.00038356,120]
[399457046,1766369450916,-500.0,0.00038356,120]
[399457047,1766369450925,-500.0,0.00038356,120]
[399457048,1766369450935,-500.0,0.00038356,120]
[399457049,1766369450945,-500.0,0.00038356,120]
[399457050,1766369450954,-500.0,0.00038356,120]
[399457051,1766369450964,-353.40558175,0.00038356,120]
[399457052,1766369450974,-300.0,0.00038356,120]
[399457053,1766369450983,-980.86609454,0.00038356,5]
[399457054,1766369450993,-481.25,0.00038384,2]
[399457055,1766369451003,-481.25,0.00038384,2]
[399457056,1766369451013,-1257.0,0.00038425,20]
[399457057,1766369451022,-525.36930819,0.0003847,60]
[399457058,1766369451032,-243.55353699,0.00038481,10]
[399457059,1766369451042,-594.28559279,0.00038558,2]
[399457060,1766369451051,-363.49948483,0.00038558,2]
[399457061,1766369451061,-576.44899553,0.00038558,2]
[399457062,1766369451071,-792.38079052,0.00038558,2]
[399457063,1766369451080,-484.66597998,0.00038558,2]
[399457064,1766369451089,-768.59866071,0.00038558,2]
[399457065,1766369451098,-150.0,0.0003861,30]
[399457066,1766369451107,-150.0,0.0003861,30]
[399457067,1766369451117,-800.0,0.00038638,14]
[399457068,1766369451127,-800.0,0.00038638,14]
[399457069,1766369451136,-800.0,0.00038638,14]
[399457070,1766369451150,-800.0,0.00038638,14]
[399457071,1766369451160,-800.0,0.00038638,14]
[399457072,1766369451170,-800.0,0.00038638,14]
[399457073,1766369451180,-800.0,0.00038638,14]
[399457074,1766369451192,-800.0,0.00038638,14]
[399457075,1766369451201,-2429.0,0.00038652,2]
[399457076,1766369451211,-200.0,0.00038687,20]
[399457077,1766369451222,-1148.86,0.000387,14]
[399457078,1766369451232,-877.99,0.00038764,5]
[399457079,1766369451243,-962.16,0.00038767,2]
[399457080,1766369451253,-481.25,0.00038767,2]
[399457081,1766369451263,-481.25,0.00038767,2]
[399457082,1766369451273,-481.25,0.00038767,2]
[399457083,1766369451283,-481.25,0.00038767,2]
[399457084,1766369451293,-481.25,0.00038767,2]
[399457085,1766369451303,-481.25,0.00038767,2]
[399457086,1766369451315,-481.25,0.00038767,2]
[399457087,1766369451324,-481.25,0.00038767,2]
[399457088,1766369451334,-1257.0,0.00038817,20]
[399457089,1766369451344,-1000.0,0.000389,120]
[399457090,1766369451355,-1000.0,0.000389,120]
[399457091,1766369451365,-1000.0,0.000389,120]
[399457092,1766369451441,-1000.0,0.000389,120]
[399457093,1766369451452,-1000.0,0.000389,120]
[399457094,1766369451462,-1000.0,0.000389,120]
[399457095,1766369451472,-1000.0,0.000389,120]
[399457096,1766369451481,-1000.0,0.000389,120]
[399457097,1766369451491,-1000.0,0.000389,120]
[399457098,1766369451500,-1000.0,0.000389,120]
[399457099,1766369451510,-1518.13760257,0.000389,2]
[399457100,1766369451520,-771.66914966,0.000389,2]
[399457101,1766369451529,-9587.77,0.00038904,2]
[399457102,1766369451539,-7000.0,0.0003891,2]
[399457103,1766369451548,-500.0,0.00038997,60]
[399457104,1766369451558,-500.0,0.00038997,60]
[399457105,1766369451567,-151.0,0.00038997,14]
[399457106,1766369451576,-1283.44242147,0.00038999,30]
[399457107,1766369451585,-500.0,0.00038999,60]
[399457108,1766369451594,-260.05,0.00038999,60]
[399457109,1766369451603,-1050793.44100371,0.00039,2]
[399457110,1766369452050,-8670.96954221,0.00039,2]
[399457111,1766369452067,-8947.21879473,0.00039,2]
[399457112,1766369452079,-8943.78386462,0.00039,2]
[399457113,1766369452090,-9077.54866152,0.00039,2]
[399457114,1766369452101,-8943.84023489,0.00039,2]
[399457115,1766369452112,-1877.68199999,0.00039,2]
[399457116,1766369452123,-278.58412469,0.00039,2]
[399457117,1766369452227,-507.20615774,9.514e-05,2]
[399457118,1766369452239,-1208.0,9.514e-05,2]
[399457119,1766369452249,-5543.09485771,9.514e-05,2]
[399457120,1766369452259,-501.99383094,9.514e-05,2]
[399457121,1766369452269,-580.24678196,9.514e-05,2]
[399457122,1766369452279,-188.4651769,9.514e-05,2]
[399457123,1766369452289,-5660.2990383,0.00019292,2]
[399457124,1766369452298,-5660.2990383,0.00021628,2]
[399457125,1766369452308,-5660.2990383,0.00023965,2]
[399457126,1766369452317,-553.9,0.00036164,2]
[399457127,1766369452327,-13156.17670452,0.00039,2]
[399457128,1766369452438,-878.45672583,0.00015258,2]
[399457129,1766369452449,-18508.1988637,0.00015258,2]
[399457130,1766369452469,-488.750531,0.00015258,2]
[399457131,1766369452481,-872.68780708,0.00015258,2]
[399457132,1766369452495,-346.44457041,0.00015258,2]
[399457133,1766369452506,-804.9096726,0.00015258,2]
[399457134,1766369452528,-328.26696821,0.00015258,2]
[399457135,1766369452539,-804.27294865,0.00015258,2]
[399457136,1766369452589,-150.68,0.00013616,2]
[399457137,1766369452599,-589.26,0.00015258,2]
[399457138,1766369452631,-900.862616,9.614e-05,2]
[399457139,1766369458045,163.0,0.00034521,30]
[399457140,1766369461387,1648.25653739,9.514e-05,2]
[399457141,1766369461482,1268.43613732,9.514e-05,2]
[399457142,1766369470756,500.0,9.513e-05,2]
[399457143,1766369477269,262.4438896,0.00035616,78]
[399457144,1766369478067,494.4,0.00035616,42]
[399457145,1766369506938,152.03,0.000306,30]
[399457146,1766369521966,500.0,9.513e-05,2]
[399457147,1766369522019,214.80280333,9.513e-05,2]
[399457148,1766369526203,500.0,9.513e-05,2]
[399457149,1766369526329,500.0,9.513e-05,2]
[399457150,1766369526499,500.0,9.513e-05,2]
[399457151,1766369526574,500.0,9.513e-05,2]
[399457152,1766369526616,500.0,9.513e-05,2]
[399457153,1766369526660,500.0,9.513e-05,2]
[399457154,1766369526699,500.0,9.513e-05,2]
[399457155,1766369526742,500.0,9.513e-05,2]
[399457156,1766369527556,500.0,9.513e-05,2]
[399457157,1766369527596,500.0,9.513e-05,2]
[399457158,1766369527641,500.0,9.513e-05,2]
[399457159,1766369527685,500.0,9.513e-05,2]
[399457160,1766369527724,500.0,9.513e-05,2]
[399457161,1766369527768,500.0,9.513e-05,2]
[399457162,1766369527815,500.0,9.513e-05,2]
[399457163,1766369527858,500.0,9.513e-05,2]
[399457164,1766369527905,500.0,9.513e-05,2]
[399457165,1766369527951,596.50730298,9.513e-05,2]
[399457166,1766369527992,188.69989369,9.513e-05,2]
[399457167,1766369528018,311.30010631,9.513e-05,2]
[399457168,1766369528066,500.0,9.513e-05,2]
[399457169,1766369528107,500.0,9.513e-05,2]
[399457170,1766369528146,500.0,9.513e-05,2]
[399457171,1766369528189,500.0,9.513e-05,2]
[399457172,1766369528229,500.0,9.513e-05,2]
[399457173,1766369528272,500.0,9.513e-05,2]
[399457174,1766369528317,500.0,9.513e-05,2]
[399457175,1766369528357,500.0,9.513e-05,2]
[399457176,1766369528409,500.0,9.513e-05,2]
[399457177,1766369528449,500.0,9.513e-05,2]
[399457178,1766369528498,500.0,9.513e-05,2]
[399457179,1766369528539,500.0,9.513e-05,2]
[399457180,1766369528584,500.0,9.513e-05,2]
[399457181,1766369528622,500.0,9.513e-05,2]
[399457182,1766369528660,500.0,9.513e-05,2]
[399457183,1766369528703,500.0,9.513e-05,2]
[399457184,1766369528747,500.0,9.513e-05,2]
[399457185,1766369528803,500.0,9.513e-05,2]
[399457186,1766369528842,500.0,9.513e-05,2]
[399457187,1766369528881,188.70989369,9.513e-05,2]
[399457188,1766369528905,311.29010631,9.513e-05,2]
[399457189,1766369528950,500.0,9.513e-05,2]
[399457190,1766369530483,150.0,0.000356,30]
[399457191,1766369554853,500.0,9.513e-05,2]
[399457192,1766369561267,303.70508048,9.513e-05,2]
[399457193,1766369566596,303.13893904,9.513e-05,2]
[399457194,1766369570007,562.0,0.00035616,30]
[399457195,1766369572306,500.0,9.513e-05,2]
[399457197,1766369622058,500.0,9.513e-05,2]
[399457199,1766369700633,152.03,0.000306,30]
[399457200,1766369700950,152.03,0.000355,30]
[399457201,1766369713222,158.9358912,0.00011054,7]
[399457202,1766369715888,999.0,0.00035616,120]
[399457203,1766369718492,295.24,0.000356,30]
[399457206,1766369802845,1004.77,0.00035616,30]
[399457208,1766369826670,2500.0,9.513e-05,2]
[399457209,1766369844653,1847.15,6.042e-05,2]
[399457210,1766369844845,1847.15,6.36e-05,2]
[399457211,1766369845064,887.57587417,6.679e-05,2]
[399457212,1766369845092,959.57412583,6.679e-05,2]
[399457213,1766369845280,1847.15,6.997e-05,2]
[399457214,1766369845462,1847.15,7.315e-05,2]
[399457215,1766369845681,1847.15,7.633e-05,2]
[399457216,1766369845893,1847.15,7.951e-05,2]
[399457217,1766369846142,1651.83587417,8.269e-05,2]
[399457218,1766369846166,195.31412583,8.269e-05,2]
[399457219,1766369846460,1847.15,8.587e-05,2]
[399457220,1766369846692,1847.15,8.905e-05,2]
[399457221,1766369846897,1847.15,9.223e-05,2]
[399457222,1766369871438,199.0,0.00034246,30]
[399457223,1766369871672,203.47513361,0.00034931,31]
[399457224,1766369893923,152.03,0.000302,30]
[399457225,1766369914720,1136.0,0.00013,6]
[399457226,1766369925535,338.83624076,0.0003561,30]
[399457227,1766369962798,999.0,0.00035616,120]
[399457228,1766369963670,1809.4316,9.513e-05,2]